Cogmind - Beta 15 @@@ ROGUE MODE // 2025.07.18 @ 19:34:44 Player: the Result: Self-destructed Performance ------------- Evolutions (5) 2500 Regions Visited (10) 2000 Robots Destroyed (191) 955 Value Destroyed (5173) 5173 Prototype IDs (27) 540 Alien Tech Used (0) 0 Bonus (1369) 1369 TOTAL SCORE: 12537 Bonus ------- High Alert Combat Kills 207 Follower Combat Kills 569 Registered with UFD 300 Met Optimus in HQ 500 Friendly Fire -207 Cogmind --------- Core Integrity 947/1000 Matter 219/300 Energy 415/415 System Corruption 1% Temperature Cool (-100) Movement Rolling (145) Ox3 Location -5/Factory Parts ------- > --- POWER (2) -------- Cold Fusion Reactor Neutrino Core > --- PROPULSION (4) --- Armored Huge Wheel Armored Huge Wheel > --- UTILITY (8) ------ Cryofiber Web Improved Heat Sink Improved Heat Sink High-capacity Storage Unit Seismic Detector Advanced Targeting Computer Hardened Heavy Armor Plating > --- WEAPON (3) ------- Cooled Pulse Rifle Variable Charge Gun Cooled Particle Cannon (fused) > --- INVENTORY (20) --- Reinforced Deuterium Engine Heavy Deuterium Engine Heavy Deuterium Engine Heavy Deuterium Engine Advanced Heat Sink Improved Cooling System Improved Coolant Injector Rocket Booster Structural Scanner Particle Charger Improved Shield Generator Drone Bay (2/2) Cooled Pulse Rifle Cooled Pulse Rifle Variable Charge Gun Plasma Cannon Rocket Array CPS Tube (2) CPS Tube (2) Companion Sword Peak State ------------ > --- POWER ------------ Cold Fusion Reactor Neutrino Core > --- PROPULSION ------- Armored Huge Wheel Armored Huge Wheel > --- UTILITY ---------- Cryofiber Web Improved Heat Sink Improved Heat Sink High-capacity Storage Unit Seismic Detector Advanced Targeting Computer Hardened Heavy Armor Plating > --- WEAPON ----------- Cooled Pulse Rifle Variable Charge Gun Cooled Particle Cannon > --- INVENTORY -------- Reinforced Deuterium Engine Heavy Deuterium Engine Heavy Deuterium Engine Heavy Deuterium Engine Advanced Heat Sink Improved Cooling System Improved Coolant Injector Rocket Booster Structural Scanner Particle Charger Improved Shield Generator Drone Bay Cooled Pulse Rifle Cooled Pulse Rifle High-powered Field Laser Plasma Cannon Rocket Array CPS Tube CPS Tube Companion Sword [Rating: 74] Favorites ----------- Power Heavy Deuterium Engine Engine Heavy Deuterium Engine Power Core Enhanced Nuclear Core Reactor Cold Fusion Reactor Propulsion Armored Huge Wheel Treads Light Treads Leg Aluminum Leg Wheel Armored Huge Wheel Hover Unit Cooled Aerolev Unit Utility Large Storage Unit Device Seismic Detector Storage Large Storage Unit Processor Advanced Targeting Computer Protection Hardened Heavy Armor Plating Weapon Cooled Pulse Rifle Energy Gun Cooled Pulse Rifle Energy Cannon Cooled Particle Cannon Ballistic Gun Assault Rifle Launcher Rocket Array Special Weapon Mining Laser Impact Weapon Power Maul Slashing Weapon Companion Sword Build | -11 -10 -10 -9 -9 -8 -7 -7 -7 -7 -5 ------- Run | Yrd Mat Min Mat Min Mat Fac Sto Rec Scr Fac Slots Evolved 10 | . . . 2 . 2 2 . . . 4 Power 1 | . . . . . . . . . . 1 Propulsion 2 | . . . 1 . . 1 . . . . Utility 6 | . . . 1 . 1 1 . . . 3 Weapon 1 | . . . . . 1 . . . . . Parts Attached 125 | 8 18 . 30 . 9 24 28 1 1 6 Power 19 | 1 1 . 4 . 1 5 4 . . 3 Engine 13 | 1 1 . 4 . 1 3 2 . . 1 Core 5 | . . . . . . 2 2 . . 1 Reactor 1 | . . . . . . . . . . 1 Propulsion 24 | 2 7 . 7 . 2 3 3 . . . Treads 2 | 2 . . . . . . . . . . Leg 2 | . 2 . . . . . . . . . Wheel 18 | . 5 . 7 . 2 3 1 . . . Hover 2 | . . . . . . . 2 . . . Flight . | . . . . . . . . . . . Utility 35 | 2 5 . 6 . 3 7 9 1 . 2 Device 14 | 1 1 . 3 . . 3 3 1 . 2 Storage 6 | 1 2 . 1 . 1 . 1 . . . Processor 5 | . . . . . 1 2 2 . . . Hackware . | . . . . . . . . . . . Protection 10 | . 2 . 2 . 1 2 3 . . . Artifact . | . . . . . . . . . . . Weapon 47 | 3 5 . 13 . 3 9 12 . 1 1 Energy Gun 30 | 1 3 . 10 . . 7 8 . . 1 Energy Cannon 6 | . . . 1 . 3 1 1 . . . Ballistic Gun 3 | 2 . . 1 . . . . . . . Ballistic Cannon . | . . . . . . . . . . . Launcher 5 | . 1 . 1 . . . 3 . . . Special Weapon 1 | . 1 . . . . . . . . . Impact Weapon 1 | . . . . . . 1 . . . . Slashing Weapon 1 | . . . . . . . . . 1 . Piercing Weapon . | . . . . . . . . . . . Special Melee Weapon . | . . . . . . . . . . . Unidentified Prototypes 21 | . . . 5 . . 2 12 . 1 1 Parts Lost 10 | . 1 . 5 . . 2 2 . . . Power . | . . . . . . . . . . . Propulsion 6 | . . . 4 . . 1 1 . . . Utility 4 | . 1 . 1 . . 1 1 . . . Weapon . | . . . . . . . . . . . Highest Loss Streak 2 | . 1 . 2 . . 1 1 . . . To Critical Strikes . | . . . . . . . . . . . Average Backups 15 | 3 9 15 14 15 14 13 14 19 19 18 Power 2 | . 1 2 2 2 2 1 2 3 3 3 Propulsion . | 1 1 3 . . . . . . . . Utility 5 | . . 3 5 6 6 5 5 8 9 7 Weapon 5 | 1 4 6 5 6 5 5 5 7 6 5 Tool/Special . | . . . . . . . . . . . Unused Backups 44 | 1 4 . 8 . 1 10 6 1 1 12 Power 7 | . . . 2 . . 1 2 . . 2 Propulsion 4 | . 4 . . . . . . . . . Utility 12 | . . . 1 . 1 2 2 . . 6 Weapon 18 | 1 . . 5 . . 7 2 . 1 2 Tool/Special 3 | . . . . . . . . 1 . 2 Average Slot Usage (%) 84 | . 99 100 97 100 96 79 76 76 76 81 Engine 7 | . 14 14 11 11 9 5 4 7 7 2 Wheel 17 | . 10 28 31 33 24 14 14 15 15 11 Device 10 | . 5 3 16 22 14 14 7 7 7 22 Storage 8 | . 14 14 11 11 9 7 7 7 7 5 Processor 5 | . . . . . 8 7 7 7 7 5 Protection 6 | . 7 10 5 . 3 3 8 7 7 5 Energy Gun 14 | . 21 17 21 12 6 10 19 15 8 10 Energy Cannon 6 | . . . . . 20 11 2 7 9 5 Launcher 1 | . . 10 . 10 . . . . 3 . Peak Build Rating 74 | 7 9 9 19 18 26 51 58 59 60 74 Average Rating 39 | 5 7 9 16 17 23 40 51 57 58 72 On Entrance 27 | . 7 9 9 18 18 22 49 56 59 58 Naked Turns . | . . . . . . . . . . . Heaviest Build 106 | 15 33 33 43 37 52 71 90 88 91 106 Greatest Support 56 | 40 40 20 30 30 30 56 56 56 56 56 Greatest Overweight (x) 4 | 1 1 1 4 1 2 4 2 1 1 3 Average Overweight (x) . | . . 1 1 1 1 1 . 1 1 1 Largest Inventory Capacity 20 | 8 15 15 15 15 15 15 20 20 20 20 Average Capacity 15 | 6 10 15 15 15 15 15 15 20 20 20 Most Carried 20 | 6 15 15 15 15 15 15 19 20 20 20 Average Carried 15 | 3 9 15 14 15 14 14 15 19 19 18 Final Capacity 20 | 8 15 15 15 15 15 15 20 20 20 20 Final Carried 20 | 5 15 15 15 15 15 14 19 19 20 20 Class Distribution -------------------- 45% | Gunner 16% | Mutant 15% | Scavenger-Gunner 13% | Scavenger-Mutant 4% | Commander-Gunner Dominant Class ---------------- Mutant | -10/Materials Mutant | -10/Mines Scavenger-Mutant | -9/Materials Scavenger-Mutant | -9/Mines Scavenger-Gunner | -8/Materials Scavenger-Gunner | -7/Factory Gunner | -7/Storage Gunner | -7/Recycling Gunner | -7/Scraptown Gunner | -5/Factory Resources | -11 -10 -10 -9 -9 -8 -7 -7 -7 -7 -5 ----------- Run | Yrd Mat Min Mat Min Mat Fac Sto Rec Scr Fac Matter Collected 2962 | 324 320 . 645 . 280 440 702 18 124 109 Remotely . | . . . . . . . . . . . Salvage Created 6906 | 122 790 . 1617 . 669 865 1881 133 579 250 Parts 379 | 10 60 . 97 . 37 43 94 6 18 14 Haulers Intercepted 16 | . 2 . 5 . 2 1 6 . . . Recyclers Shooed 2 | 1 . . 1 . . . . . . . Parts Field Recycled . | . . . . . . . . . . . Retrieved Matter . | . . . . . . . . . . . Parts Self-Destructed . | . . . . . . . . . . . Prevented . | . . . . . . . . . . . Kills | -11 -10 -10 -9 -9 -8 -7 -7 -7 -7 -5 ------- Run | Yrd Mat Min Mat Min Mat Fac Sto Rec Scr Fac Combat Hostiles Destroyed 115 | . 11 . 29 . 17 13 28 2 7 8 Guns 66 | . 6 . 20 . 3 6 23 1 5 2 Cannons 19 | . . . . . 8 6 1 1 2 1 AOE 26 | . 5 . 7 . 6 . 3 . . 5 Classes Destroyed 18 | 2 7 . 3 . . 2 2 . 2 . Worker 21 | . 7 . 7 . 2 4 1 . . . Builder 8 | . 3 . 1 . 1 1 2 . . . Tunneler 8 | 3 3 . 1 . . 1 . . . . Hauler 16 | . 2 . 5 . 2 1 6 . . . Recycler 7 | 1 1 . . . . 1 4 . . . Mechanic 1 | . . . . . . . 1 . . . Operator 2 | . 1 . . . . . 1 . . . Watcher 10 | . 3 . 5 . 1 1 . . . . Swarmer 34 | . 6 . 8 . 9 1 5 . . 5 Grunt 32 | . 5 . 9 . 4 2 12 . . . Brawler 2 | . . . 1 . . 1 . . . . Duelist 2 | . . . 1 . . 1 . . . . Sentry 28 | . . . 10 . 4 3 8 2 . 1 Demolisher 1 | . . . . . . . 1 . . . Hunter 1 | . . . . . . 1 . . . . Programmer 10 | . . . . . . 4 4 . . 2 Scrapper 6 | . . . . . . . . . 6 . Elite 1 | . . . . . . . . . 1 . Savage 1 | . . . . . . . . . 1 . Best Kill Streak 11 | 3 7 . 11 . 6 4 5 1 5 7 Combat Bots Only 9 | . 4 . 9 . 5 3 4 1 5 7 Max Kills in Single Turn 5 | 1 2 . 2 . 3 2 3 1 1 5 Gunslinging . | . . . . . . . . . . . Exploded 5 | . 2 . 2 . 3 . 2 . . 5 Melee . | . . . . . . . . . . . Uniques/NPCs Destroyed . | . . . . . . . . . . . Combat | -11 -10 -10 -9 -9 -8 -7 -7 -7 -7 -5 -------- Run | Yrd Mat Min Mat Min Mat Fac Sto Rec Scr Fac Hostile Shots Fired 474 | . 39 . 98 . 45 72 174 6 20 20 Missed 143 | . 14 . 24 . 9 21 58 4 6 7 Hits 331 | . 25 . 74 . 36 51 116 2 14 13 Melee 6 | . . . 2 . . 4 . . . . Projectile 325 | . 25 . 72 . 36 47 116 2 14 13 AOE 9 | . . . . . . . 8 . 1 . Critical Strikes 11 | . . . 1 . 2 3 2 . 3 . Damage Taken 4864 | . 282 . 1005 . 444 850 1599 11 365 308 Core 601 | . 74 . 95 . 47 162 170 . . 53 Absorbed by Shields . | . . . . . . . . . . . Regen/Repaired (Parts) 1323 | . . . 119 . . . 616 . 588 . Core Remaining (%) 77 | 100 . 70 . 76 91 . . . 52 . Volleys Fired 351 | 11 62 . 108 1 35 37 74 4 13 6 Largest 3 | 2 2 . 2 1 3 3 3 3 3 3 Hottest 375 | 40 100 . 112 56 211 240 216 210 240 375 Shots Fired 817 | 22 114 . 208 1 98 106 202 13 37 16 Gun 613 | 22 108 . 200 1 21 50 180 9 12 10 Cannon 184 | . . . . . 74 56 20 4 25 5 Launcher 19 | . 5 . 8 . 3 . 2 . . 1 Special 1 | . 1 . . . . . . . . . Kinetic 34 | 22 12 . . . . . . . . . Thermal 722 | . 81 . 174 1 95 106 200 13 37 15 Explosive 19 | . 5 . 8 . 3 . 2 . . 1 Electromagnetic 42 | . 16 . 26 . . . . . . . Robot Hit Streak 32 | 7 15 . 28 3 16 32 26 7 12 15 Robot Miss Streak 9 | 2 2 . 3 . 9 4 4 1 1 1 Penetration Max . | . . . . . . . . . . . Secondary Targets 5 | . 1 . 2 . . 1 1 . . . Max Gunslinging Chain 1 | . 1 . 1 . . 1 1 . . . Shots Hit Robots 542 | 15 72 . 144 1 52 76 143 8 22 9 Core Hits 323 | 5 39 . 69 1 29 38 117 4 10 11 Critical Kills 3 | . . . . . 1 2 . . . . Critical Parts Destroyed . | . . . . . . . . . . . Critical Strikes 40 | . 4 . 19 . 2 3 12 . . . Burn 37 | . 4 . 19 . 1 1 12 . . . Meltdown 3 | . . . . . 1 2 . . . . Melee Attacks 4 | . . . . . . 1 3 . . . Impact 4 | . . . . . . 1 3 . . . Slashing . | . . . . . . . . . . . Piercing . | . . . . . . . . . . . Sneak Attacks . | . . . . . . . . . . . Combat Hostiles . | . . . . . . . . . . . Follow-up Attacks . | . . . . . . . . . . . Damage Inflicted 13778 | 164 1258 . 2756 14 1532 1857 4439 352 755 651 Guns 8249 | 164 961 . 2182 14 171 991 3045 192 227 302 Cannons 3038 | . . . . . 951 866 416 160 528 117 Explosions 2491 | . 297 . 574 . 410 . 978 . . 232 Melee . | . . . . . . . . . . . Ramming . | . . . . . . . . . . . Kinetic 264 | 164 100 . . . . . . . . . Thermal 10652 | . 696 . 1976 14 1122 1857 3461 352 755 419 Explosive 2326 | . 252 . 454 . 410 . 978 . . 232 Electromagnetic 536 | . 210 . 326 . . . . . . . Impact . | . . . . . . . . . . . Slashing . | . . . . . . . . . . . Piercing . | . . . . . . . . . . . Highest Corruption 7 | . 2 2 . . . . 7 7 . 1 Average Corruption 3 | . 2 2 . . . . 3 7 . 1 Corruption Purged . | . . . . . . . . . . . Corruption Blocked . | . . . . . . . . . . . Effects 57 | . 2 2 . . . . 40 12 . 1 Message Errors 11 | . . . . . . . 7 4 . . Matter Fused 10 | . 1 . . . . . 4 5 . . Heat Flow Errors 10 | . . 2 . . . . 8 . . . Energy Discharges 9 | . . . . . . . 8 . . 1 Parts Rejected 1 | . . . . . . . 1 . . . Parts Fused 1 | . . . . . . . 1 . . . Data Loss (minor) 8 | . 1 . . . . . 6 1 . . Data Loss (major) 2 | . . . . . . . 1 1 . . Misfires 2 | . . . . . . . 1 1 . . Weapon Failures 3 | . . . . . . . 3 . . . Overload Shots 49 | . . . . . . . 18 13 5 13 Effects 3 | . . . . . . . 1 . . 2 Heat Surge 2 | . . . . . . . 1 . . 1 Short Circuit 1 | . . . . . . . . . . 1 Overflow Damage 226 | . 30 . 10 . 52 19 106 . 4 5 Projectiles 84 | . . . . . 5 19 51 . 4 5 Explosions 142 | . 30 . 10 . 47 . 55 . . . Melee . | . . . . . . . . . . . Knockbacks . | . . . . . . . . . . . Impact . | . . . . . . . . . . . Kinetic . | . . . . . . . . . . . Secondary . | . . . . . . . . . . . Self-Inflicted Damage 419 | . . . 136 . . 159 124 . . . Shots 11 | . . . 6 . . 2 3 . . . Rammed . | . . . . . . . . . . . Targets Rammed . | . . . . . . . . . . . Kicked . | . . . . . . . . . . . Crushed . | . . . . . . . . . . . Highest Temperature 491 | . 303 284 309 . 402 436 491 318 458 382 Average Temperature 131 | . 74 130 70 . 117 113 169 134 181 228 Received Heat Transfer 1263 | . 84 . 276 . 189 93 366 . 255 . Effects 21 | . 2 . . . . 2 17 . . . Shutdowns 3 | . . . . . . 1 2 . . . Energy Bleed 8 | . . . . . . 1 7 . . . Interference 3 | . 2 . . . . . 1 . . . Short Circuit 1 | . . . . . . . 1 . . . Damage (minor) 2 | . . . . . . . 2 . . . Damage (major) 4 | . . . . . . . 4 . . . Siege Activations . | . . . . . . . . . . . Martial Activations . | . . . . . . . . . . . Shielding Activations . | . . . . . . . . . . . Robots Disrupted . | . . . . . . . . . . . Combat Hostiles . | . . . . . . . . . . . Robots Corrupted . | . . . . . . . . . . . Combat Hostiles . | . . . . . . . . . . . Parts Fried 3 | . . . 2 . . . . . 1 . Impact Corruptions . | . . . . . . . . . . . Robots Melted 7 | . . . 3 . 1 2 1 . . . Combat Hostiles 4 | . . . 2 . . 1 1 . . . Parts Melted 52 | . 3 . 15 . 4 13 10 1 6 . Heat Transferred 21952 | . 2270 . 6181 37 2035 3633 6051 400 908 437 Parts Sabotaged . | . . . . . . . . . . . Parts Stolen . | . . . . . . . . . . . Parts Stripped . | . . . . . . . . . . . Power Chain Reactions 4 | . 1 . 3 . . . . . . . Alert | -11 -10 -10 -9 -9 -8 -7 -7 -7 -7 -5 ------- Run | Yrd Mat Min Mat Min Mat Fac Sto Rec Scr Fac Maximum Alert Level 4 | . . . 2 . 1 . 4 2 . 1 Low Security (%) 67 | 100 100 100 52 100 70 100 34 19 . 94 Level 1 13 | . . . 8 . 29 . 28 46 . 5 Level 2 12 | . . . 39 . . . 11 34 . . Level 3 4 | . . . . . . . 19 . . . Level 4 1 | . . . . . . . 5 . . . Level 5 . | . . . . . . . . . . . High Security . | . . . . . . . . . . . Max Security . | . . . . . . . . . . . Peak Influence 1193 | 10 125 35 488 180 373 169 1193 460 . 214 Initial 460 | . . 35 . 180 54 21 70 460 . . Average 197 | 1 46 15 261 160 171 48 388 323 . 22 Influence Increases 4976 | 20 435 . 1053 . 573 573 1981 82 . 259 Destroy 0b10 Robot/C 2520 | . 220 . 580 . 340 260 900 60 . 160 Destroy 0b10 Robot/NC 370 | 20 100 . 95 . 30 45 80 . . . Destroy Leader 704 | . 60 . 170 . 86 94 264 . . 30 Allied During Kill 255 | . . . . . . . 252 3 . . Successful Hack 215 | . 9 . 38 . 18 52 59 14 . 25 Disable Machine 315 | . . . 60 . 30 90 135 . . . Anti-Garrison Action 150 | . . . . . . . 150 . . . Destroy Structure 297 | . 31 . 65 . 39 32 81 5 . 44 Partial Spotted 15 | . . . 15 . . . . . . . Lose Combat Pursuer 135 | . 15 . 30 . 30 . 60 . . . Influence Decreases 4772 | 20 344 91 589 324 666 463 957 1255 8 55 Entered New Map 1268 | . . 56 . 284 86 26 87 721 8 . Time Decay 2524 | 20 324 35 539 40 270 427 600 214 . 55 Lost Part 90 | . 10 . 50 . . 10 20 . . . Lost Ally 130 | . . . . . 10 . 100 20 . . Purge Threat 760 | . 10 . . . 300 . 150 300 . . Squads Dispatched 28 | . 3 . 1 . 1 6 16 . . 1 Investigation 7 | . 2 . . . . 1 4 . . . Extermination 10 | . . . . . . 3 6 . . 1 Reinforcement 7 | . 1 . 1 . 1 2 2 . . . Assault 3 | . . . . . . . 3 . . . Garrison 1 | . . . . . . . 1 . . . Intercept . | . . . . . . . . . . . Searches Triggered . | . . . . . . . . . . . Construction Impeded . | . . . . . . . . . . . Haulers Reinforced . | . . . . . . . . . . . Active Scanning Responses . | . . . . . . . . . . . Cargo Convoy Interrupts . | . . . . . . . . . . . Stealth | -11 -10 -10 -9 -9 -8 -7 -7 -7 -7 -5 --------- Run | Yrd Mat Min Mat Min Mat Fac Sto Rec Scr Fac Distress Signals 12 | . 1 . 3 . 3 . 5 . . . Communications Jammed . | . . . . . . . . . . . Distress Signals . | . . . . . . . . . . . Times Spotted 182 | . 15 . 44 . 22 20 55 2 16 8 Peak Tracking Total 9 | . 4 . 8 . 7 7 6 1 9 5 Tactical Retreats 8 | . 1 . 2 . 2 . 3 . . . Traps | -11 -10 -10 -9 -9 -8 -7 -7 -7 -7 -5 ------- Run | Yrd Mat Min Mat Min Mat Fac Sto Rec Scr Fac Traps Triggered 17 | . 2 . . . 2 5 7 . . 1 Indirectly . | . . . . . . . . . . . Trap Hack Attempts . | . . . . . . . . . . . Triggered . | . . . . . . . . . . . Disarmed . | . . . . . . . . . . . Reprogrammed . | . . . . . . . . . . . Reused . | . . . . . . . . . . . Traps Extracted . | . . . . . . . . . . . Installed . | . . . . . . . . . . . Triggered . | . . . . . . . . . . . Machines | -11 -10 -10 -9 -9 -8 -7 -7 -7 -7 -5 ---------- Run | Yrd Mat Min Mat Min Mat Fac Sto Rec Scr Fac Machines Disabled 24 | . 1 . 4 . 2 6 10 . 1 . Max in Single Turn 4 | . 1 . 1 . 1 4 1 . 1 . Garrison Access 1 | . . . . . . . 1 . . . Machines Repaired . | . . . . . . . . . . . Machines Dismantled . | . . . . . . . . . . . Machines Sabotaged . | . . . . . . . . . . . Overloaded Fab Kills . | . . . . . . . . . . . Hacking | -11 -10 -10 -9 -9 -8 -7 -7 -7 -7 -5 --------- Run | Yrd Mat Min Mat Min Mat Fac Sto Rec Scr Fac Machines Accessed 75 | . 9 . 15 . 7 15 14 6 4 5 Terminals 47 | . 7 . 11 . 6 6 10 6 . 1 Fabricators 3 | . . . . . . 2 . . . 1 Repair Stations 6 | . 1 . 2 . . 1 2 . . . Recycling Units 7 | . 1 . . . 1 3 1 . . 1 Scanalyzers 5 | . . . 2 . . 2 . . . 1 Garrison Access 3 | . . . . . . 1 1 . . 1 Total Hacks 194 | . 25 . 41 . 19 38 32 16 13 10 Successful 96 | . 6 . 25 . 11 18 14 5 13 4 Failed 98 | . 19 . 16 . 8 20 18 11 . 6 Catastrophic 23 | . 2 . 2 . 1 5 6 4 . 3 Database Lockouts . | . . . . . . . . . . . Manual 60 | . 9 . 11 . 8 8 13 9 . 2 Terminals 120 | . 23 . 26 . 18 14 20 16 . 3 Fabricators 5 | . . . . . . 4 . . . 1 Repair Stations 19 | . 1 . 8 . . 2 8 . . . Recycling Units 13 | . 1 . . . 1 7 2 . . 2 Scanalyzers 18 | . . . 7 . . 9 . . . 2 Garrison Access 6 | . . . . . . 2 2 . . 2 Terminal Hacks 45 | . 4 . 7 . 7 3 7 3 13 1 Record 11 | . . . . . . . . . 11 . Robot Analysis 3 | . . . 1 . 1 . 1 . . . Open Door 4 | . . . . . . . 3 . 1 . Branch Access Points 2 | . . . 1 . 1 . . . . . Terminal Index 2 | . . . 1 . 1 . . . . . Recycling Unit Index 1 | . . . . . 1 . . . . . Alert Level 5 | . . . 2 . 1 1 . 1 . . Unreport Threat 6 | . 1 . . . 2 . 1 2 . . Locate Traps 3 | . 1 . 1 . . . . . . 1 Hauler Manifests 2 | . 1 . . . . 1 . . . . Zone Layout 5 | . 1 . 1 . . 1 2 . . . Proto ID Catalog 1 | . . . . . . . . . 1 . Fabricator Hacks 1 | . . . . . . 1 . . . . Network Status 1 | . . . . . . 1 . . . . Repair Station Hacks 11 | . . . 6 . . 1 4 . . . Scan Component 6 | . . . 3 . . 1 2 . . . Repair 5 | . . . 3 . . . 2 . . . Recycling Unit Hacks 4 | . 1 . . . 1 2 . . . . Retrieve Components 4 | . 1 . . . 1 2 . . . . Scanalyzer 16 | . . . 5 . . 9 . . . 2 Insert Component 9 | . . . 3 . . 5 . . . 1 Analyze 7 | . . . 2 . . 4 . . . 1 Garrison Access Hacks . | . . . . . . . . . . . Unauthorized Hacks 19 | . 1 . 7 . 3 2 3 2 . 1 Terminals 18 | . 1 . 7 . 3 1 3 2 . 1 Assimilate 2 | . . . 2 . . . . . . . Botnet 15 | . 1 . 4 . 3 1 3 2 . 1 Operators 1 | . . . 1 . . . . . . . Fabricators 1 | . . . . . . 1 . . . . Report 1 | . . . . . . 1 . . . . Repair Stations . | . . . . . . . . . . . Recycling Units . | . . . . . . . . . . . Scanalyzers . | . . . . . . . . . . . Garrison Access . | . . . . . . . . . . . Data Cores Recovered . | . . . . . . . . . . . Used . | . . . . . . . . . . . Hacking Detections 65 | . 8 . 15 . 6 13 12 6 . 5 Full Trace Events 8 | . 1 . 1 . . . 3 3 . . Feedback Events 1 | . . . . . . . 1 . . . Corruption 1 | . . . . . . . 1 . . . Feedback Blocked . | . . . . . . . . . . . Robot Schematics Acquired . | . . . . . . . . . . . Robots Built . | . . . . . . . . . . . Authchips . | . . . . . . . . . . . Time . | . . . . . . . . . . . Total Robot Build Rating . | . . . . . . . . . . . Part Schematics Acquired 7 | . . . 2 . . 4 . . . 1 Parts Built . | . . . . . . . . . . . Authchips . | . . . . . . . . . . . Time . | . . . . . . . . . . . Total Part Build Rating . | . . . . . . . . . . . Parts Repaired 5 | . . . 3 . . . 2 . . . Time 166 | . . . 122 . . . 44 . . . Parts Recycled . | . . . . . . . . . . . Recycled Matter . | . . . . . . . . . . . Retrieved Matter . | . . . . . . . . . . . Retrieved Components 8 | . 7 . . . 1 . . . . . Parts Scanalyzed 7 | . . . 2 . . 4 . . . 1 Part Schematics Acquired 7 | . . . 2 . . 4 . . . 1 Parts Damaged 1 | . . . 1 . . . . . . . Bothacking | -11 -10 -10 -9 -9 -8 -7 -7 -7 -7 -5 ------------ Run | Yrd Mat Min Mat Min Mat Fac Sto Rec Scr Fac Used RIF Installer . | . . . . . . . . . . . Robots Hacked . | . . . . . . . . . . . Non-combat . | . . . . . . . . . . . Combat . | . . . . . . . . . . . Robot Hacks Applied . | . . . . . . . . . . . Relay Couplers Released 1 | . . . . . . . 1 . . . Machine Destruction 1 | . . . . . . . 1 . . . Fabnet Peak Effective % . | . . . . . . . . . . . Robots Rewired . | . . . . . . . . . . . Allies Hacked . | . . . . . . . . . . . Hacks Repelled . | . . . . . . . . . . . Allies | -11 -10 -10 -9 -9 -8 -7 -7 -7 -7 -5 -------- Run | Yrd Mat Min Mat Min Mat Fac Sto Rec Scr Fac Total Allies 11 | . . . 1 . . . 10 . . . Largest Group 10 | . . . 1 1 1 . 10 2 1 . Highest-Rated Group 173 | . . . 10 10 10 . 173 32 16 . Highest-Rated Ally 29 | . . . 10 10 10 . 29 16 16 . Total Orders 3 | . . . . . . . 3 . . . STAY 1 | . . . . . . . 1 . . . FOLLOW 2 | . . . . . . . 2 . . . Ally Attacks 136 | . . . . . . . 129 4 3 . Total Damage 1523 | . . . . . . . 1425 67 31 . Kills 19 | . . . . . . . 18 1 . . Allies Corrupted . | . . . . . . . . . . . Allies Melted 2 | . . . . . . . . . 2 . Intel | -11 -10 -10 -9 -9 -8 -7 -7 -7 -7 -5 ------- Run | Yrd Mat Min Mat Min Mat Fac Sto Rec Scr Fac Active Infowar (turns) 6224 | 29 452 24 1099 96 393 1868 1782 180 . 301 Structural 1105 | . . . 3 . 2 997 86 . . 17 Seismic 6060 | 29 452 24 1098 96 391 1810 1696 180 . 284 Robot Analysis Total 3 | . . . 1 . 1 . 1 . . . Derelict Logs Recovered . | . . . . . . . . . . . Drone Launches . | . . . . . . . . . . . Drone Recoveries . | . . . . . . . . . . . Exploration | -11 -10 -10 -9 -9 -8 -7 -7 -7 -7 -5 ------------- Run | Yrd Mat Min Mat Min Mat Fac Sto Rec Scr Fac Turns Passed 10615 | 120 1072 104 1647 96 587 1978 2141 459 2107 304 Spaces Moved 6860 | 47 698 107 962 89 365 1226 1220 375 1552 219 Core 4 | 4 . . . . . . . . . . Treads 185 | 43 142 . . . . . . . . . Legs 243 | . 243 . . . . . . . . . Wheels 6428 | . 313 107 962 89 365 1226 1220 375 1552 219 Hover . | . . . . . . . . . . . Flight . | . . . . . . . . . . . Fastest Speed 50 | 50 80 95 95 95 95 86 100 115 115 115 Average Speed 110 | 152 114 95 95 95 99 111 112 115 115 116 Slowest Speed 190 | 160 190 95 140 95 110 140 130 115 115 145 Overloaded Moves . | . . . . . . . . . . . Propulsion Burnouts . | . . . . . . . . . . . Robots Hopped . | . . . . . . . . . . . Potential Cave-ins . | . . . . . . . . . . . Cave-ins Triggered . | . . . . . . . . . . . Exploration Rate (%) 53 | 4 95 34 82 18 43 40 96 87 83 8 Regions Visited 10 Branch Regions 5 Pre-discovered Areas 2 | . . 1 . . . . . . 1 . Known Exits Taken 2 | . . . 1 . . 1 . . . . Unknown Exits Taken 8 | 1 1 1 . 1 1 . 1 1 1 . Scrap Searched 3 | . . . . . . . . . 3 . Spaces Dug 35 | . 1 . 30 . . 1 3 . . . Terrain Destroyed 285 | . 31 . 73 . 37 38 75 5 5 21 Melee 4 | . . . . . . 1 3 . . . Projectile 36 | . 1 . . . 13 . 7 5 5 5 AOE 245 | . 30 . 73 . 24 37 65 . . 16 Terrain Rammed . | . . . . . . . . . . . Walls Destroyed . | . . . . . . . . . . . Machines Disabled . | . . . . . . . . . . . Actions | -11 -10 -10 -9 -9 -8 -7 -7 -7 -7 -5 --------- Run | Yrd Mat Min Mat Min Mat Fac Sto Rec Scr Fac Total 9164 | 72 853 108 1474 98 510 1748 1811 393 1845 252 Wait 1447 | . 34 . 298 7 73 367 390 12 263 3 Move 6850 | 46 697 106 961 88 364 1225 1219 374 1551 219 Hop . | . . . . . . . . . . . Pick Up 102 | 6 18 . 21 . 7 21 18 1 4 6 Fast Attach 46 | 7 5 . 8 . 2 6 15 . 3 . Attach 21 | . . . 8 . 3 5 1 . . 4 Detach 4 | . 1 . 1 . . 1 1 . . . Swap 180 | 1 18 2 41 2 18 36 44 1 5 12 Drop 127 | 1 18 . 28 . 8 33 30 1 6 2 Fire 351 | 11 62 . 108 1 35 37 74 4 13 6 Melee 4 | . . . . . . 1 3 . . . Ram . | . . . . . . . . . . . Kick . | . . . . . . . . . . . Crush . | . . . . . . . . . . . Escape Stasis 32 | . . . . . . 16 16 . . . Rewire . | . . . . . . . . . . . Trap . | . . . . . . . . . . . Miscellaneous . | . . . . . . . . . . . Route ------- -11/Scrapyard -10/Materials (discovered 4 exits: *Mat x2 / [*Min x2]) -10/Mines -9/Materials (discovered 4 exits: *Mat x2 / *Min x2) -9/Mines -8/Materials -7/Factory (discovered 2 exits: *Sto / *Low) -7/Storage (discovered 2 exits: [*Fac] / *Rec) -7/Recycling (discovered 2 exits: *Fac / *Scr) -7/Scraptown -5/Factory History --------- Turn | Location | Event 13 | -11/Scrapyard | Discovered new exit (range 14) 121 | -11/Scrapyard | Entered Materials 288 | -10/Materials | Discovered new exit (range 3) 302 | -10/Materials | Build established: Mutant 340 | -10/Materials | Discovered new exit (range 16) 841 | -10/Materials | Discovered new exit (range 16) 1018 | -10/Materials | Discovered new exit (range 10) 1193 | -10/Materials | Entered Mines 1292 | -10/Mines | Discovered new exit (range 4) 1294 | -10/Mines | Learned location of Storage (-7) 1297 | -10/Mines | Entered Materials 1297 | -9/Materials | Evolved 2 slots: Propulsion x1, Utility x1 1398 | -9/Materials | Repaired Wheel 1600 | -9/Materials | Build established: Scavenger-Mutant 1846 | -9/Materials | Identified exit to Mines 2144 | -9/Materials | Discovered new exit (range 16) 2299 | -9/Materials | Destroyed 9 combat bots 2640 | -9/Materials | Discovered new exit (range 15) 2857 | -9/Materials | Repaired Med. Armor Plating 2922 | -9/Materials | Repaired Broken Adv. Beam Cannon 2944 | -9/Materials | Entered Mines 2944 | -9/Mines | Accompanied by 1 ally 2964 | -9/Mines | Discovered new exit (range 12) 2969 | -9/Mines | Met a Derelict bent on vengeance 3040 | -9/Mines | Entered Materials 3040 | -8/Materials | Accompanied by 1 ally 3040 | -8/Materials | Evolved 2 slots: Utility x1, Weapon x1 3603 | -8/Materials | Discovered new exit (range 16) 3627 | -8/Materials | Entered Factory 3627 | -7/Factory | Evolved 2 slots: Propulsion x1, Utility x1 3722 | -7/Factory | Build established: Scavenger-Gunner 3931 | -7/Factory | Discovered new exit (range 14) 3956 | -7/Factory | Identified exit to Lower Caves 4205 | -7/Factory | Discovered new exit (range 12) 5439 | -7/Factory | Build established: Gunner 5603 | -7/Factory | Identified exit to Storage 5605 | -7/Factory | Entered Storage 6245 | -7/Storage | Discovered new exit (range 19) 6276 | -7/Storage | Used back door to open Recycling access 6502 | -7/Storage | Discovered new exit (range 16) 6740 | -7/Storage | Found Prototype Launcher 6740 | -7/Storage | Identified Rocket Array 6954 | -7/Storage | Assisted by bots powering up and referring to "LRC-V3" 7182 | -7/Storage | Repaired Hrd. Heavy Armor Plating 7263 | -7/Storage | Repaired Arm. Huge Wheel 7426 | -7/Storage | Build established: Commander-Gunner 7605 | -7/Storage | First assault squad dispatched 7616 | -7/Storage | Garrison activated, responded to threat 7650 | -7/Storage | Lost 4 allies 7746 | -7/Storage | Entered Recycling 7746 | -7/Recycling | Accompanied by 2 allies 7914 | -7/Recycling | Build established: Gunner 8002 | -7/Recycling | Discovered new exit (range 5) 8176 | -7/Recycling | Scanned before Scraplab entrance 8193 | -7/Recycling | Entered Scraplab 8202 | -7/Recycling | Discovered new exit (range 2) 8205 | -7/Recycling | Entered Scraptown 8205 | -7/Scraptown | Accompanied by 1 ally 8205 | -7/Scraptown | System corruption cleaned by C-Scrubber 8342 | -7/Scraptown | Visited Cave Peace 8356 | -7/Scraptown | Visited Cyclists 8390 | -7/Scraptown | Visited CR-KLE's Repair Center 8409 | -7/Scraptown | Visited Spacefarers 8465 | -7/Scraptown | Visited CPS Storage 8484 | -7/Scraptown | Visited Scrapoid Research Area 8530 | -7/Scraptown | Visited Red Mages 8555 | -7/Scraptown | Found Relay Coupler [Proto] 8714 | -7/Scraptown | Heard Great Nut preacher, LISTEN AND RECITE! 8915 | -7/Scraptown | Visited UFD Registry 8915 | -7/Scraptown | Registered with UFD as "Thunderglider" 8943 | -7/Scraptown | Visited Derelict Rescue Squad 8989 | -7/Scraptown | Visited Curators Association 9030 | -7/Scraptown | Visited Research Penetration Think Tank 9065 | -7/Scraptown | Visited Scrap Suit Storage 9088 | -7/Scraptown | Visited Sword Containment 9143 | -7/Scraptown | Visited Scrapoid Pod Storage 9172 | -7/Scraptown | Visited Science Guys 9480 | -7/Scraptown | Entered Cyclist Reading Room 9516 | -7/Scraptown | CR-KLE repaired 5 parts 9786 | -7/Scraptown | Met Optimus 9786 | -7/Scraptown | Accepted into 0bPrime 10186 | -7/Scraptown | Civil war broke out across Scraptown 10275 | -7/Scraptown | Discovered new exit (range 8) 10312 | -7/Scraptown | Entered Factory 10312 | -5/Factory | Evolved 4 slots: Power x1, Utility x3 10319 | -5/Factory | Lost 14 allies 10616 | -5/Factory | Self-destructed Last Messages --------------- 10582_ ALERT: All DSF locations entering lockdown mode. 10587_ S-27 Virus destroyed. 10588_ The unstable cave ceiling collapses. 10591_ Assembly Bed disabled. 10591_ U-05 Engineer builds a Wall. 10592_ P-70 Sage destroyed. 10592_ Overload: Heat surge (+137). 10595_ Arm. Huge Wheel broken. 10595_ Overload: Short circuit. 10595_ Destroyed Mic. Fission Core. 10599_ P-70 Sage destroyed. 10605_ U-05 Engineer lays Concrete. 10606_ K-01 Serf collects debris. 10607_ U-05 Engineer lays Concrete. 10607_ Acquired 54 matter. 10609_ Acquired 55 matter. 10609_ U-05 Engineer builds a Wall. 10610_ K-01 Serf collects debris. 10613_ U-05 Engineer lays Concrete. 10614_ R-10 Processor collects Tesla Rifle. Map ----- +----------------------------------------------------+ | ???????????????????????????????????????# ! # | | ???????????????????????????????????????# # | | ???????????????????????????????????????# # | | ???????????????????????????????????????# # | | ????????????????????????????" ????????# # | | ???????????????????????????? ??????? # | | ???????????????????????????? ?????? ??# | | ???????????????????????????# # # #+###### ##### | | ????????????????????????? ? | | ????????????????????????? ? | | ?????????????????????????? | | ?????????????????????????? ! | | ????????????????????????? % !% | | ????????????????????????? # [%*######## | | ?????????????????????????? =%= #* | | ??????????????????????????? """" #%= | | ??????????????????????????? """" ! | | ???????????????????????????# """" # | | ???????????????????????????# """ # | | ???????????????????????????# = """" # | | ??????????????????####+##### """" ## # | | ??????????????????# R[ # # | | ??????????????????# """ #| ## # ### | | ??????????????????+ """ + * ### ######? | | ??????????????????# """ #!= [ #?####?????? | | ??????????????????# !@ #!"" "" !#??????????? | | ??????????????????# """ # ""S"" #??????????? | | ??????????????????# """ # """" #??????????? | | ??????????????????# """ # #??????????? | | ??????????????????# #"##########??????????? | | ??????????????????########## #???????????????????? | | ???????????????????????????# #???????????????????? | | ???????????????????????????###???????????????????? | | ?????????????????????????????????????????????????? | | ?????????????????????????????????????????????????? | | ?????????????????????????????????????????????????? | | ?????????????????????????????????????????????????? | | ?????????????????????????????????????????????????? | | ?????????????????????????????????????????????????? | | ?????????????????????????????????????????????????? | | ?????????????????????????????????????????????????? | | ?????????????????????????????????????????????????? | | ?????????????????????????????????????????????????? | | ?????????????????????????????????????????????????? | | ?????????????????????????????????????????????????? | | ?????????????????????????????????????????????????? | | ?????????????????????????????????????????????????? | | ?????????????????????????????????????????????????? | | ?????????????????????????????????????????????????? | | ?????????????????????????????????????????????????? | +----------------------------------------------------+ Best States ------------- Heat Dissipation 96 Energy Generation 31 Energy Capacity 520 Matter Stores 300 Matter Capacity 300 Sight Range 16 Terrain Scan Density 10 Base Temperature (-) 100 Armor Coverage 600 Evasion (%) 55 Targeting Accuracy 8 Recoil Reduction 2 Item Schematics ----------------- Adv. Beam Cannon | -9/Materials | Scanalyzed Rnf. Ion Engine | -9/Materials | Scanalyzed Cryofiber Web | -7/Factory | Scanalyzed Hvy. Deuterium Engine | -7/Factory | Scanalyzed Gatling Laser | -7/Factory | Scanalyzed Arm. Huge Wheel | -7/Factory | Scanalyzed Adv. Heat Sink | -5/Factory | Scanalyzed Robot Schematics ------------------ None Fabricated ------------ Nothing Repaired ---------- Wheel | 65% | -9/Materials Med. Armor Plating | 12% | -9/Materials Adv. Beam Cannon | 99% | -9/Materials | Broken Hrd. Heavy Armor Plating | 24% | -7/Storage Arm. Huge Wheel | 34% | -7/Storage Alien Tech Used ----------------- None Achievements -------------- None Challenges ------------ None Game ------ Seed NodeThrusterClaymores Manual? 0 Play Time 02:26:58 Cumulative 190.3 hours Start 2025.07.13 @ 13:08:58 End 2025.07.18 @ 19:34:44 Sessions 19 Manual Loads 0 Difficulty Rogue Special Mode None Game No. 135 Rogue 135 Adventurer 0 Explorer 0 Win Type - Total 2 Types 2/0/0/0/0/0/0/0/0/0 Lore% 63 Gallery% 58 Achievement% 51 Wizard Run 0 Options --------- Layout 1 ASCII 0 Keyboard 0 Movement Mouse Keybinds 0 Fullscreen 1 Font 32/SmallcapsGlow Map View 50x35 Zoom Use 1% Tactical HUD 1 Map Filters NONE Filters NONE Steam 1 RUN: 5e2c79fd-e42b-4151-8738-a427d24d66a9